Body name,Body,Service Label,Service Code,Service division Label,Service division code,Organisational unit,Expenditure Category,Expenditure Code,CIPFA detailed expenditure type,CIPFA detailed expenditure code,Narrative,Date,Transaction number,Net Amount,Capital and revenue,Supplier Name
Gosport Borough Council,,ENV AND REGULATORY SERVICES,H4-12,,,,GROUNDS MAINTENANCE COSTS,,,,,12/11/15,72452,550.00,REVENUE,Cliff Phillips Landscapes
Gosport Borough Council,,CULTURAL AND RELATED SERVICES,H4-11,,,,RENTS,,,,,19/11/15,72873,293.90,REVENUE,Gosport Community Association
Gosport Borough Council,,CULTURAL AND RELATED SERVICES,H4-11,,,,WATER SERVICES,,,,,05/11/15,72526,887.27,REVENUE,Southern Water
Gosport Borough Council,,CULTURAL AND RELATED SERVICES,H4-11,,,,WATER SERVICES,,,,,12/11/15,72698,661.18,REVENUE,Portsmouth Water Ltd
Gosport Borough Council,,CULTURAL AND RELATED SERVICES,H4-11,,,,GROUNDS MAINTENANCE COSTS,,,,,12/11/15,72448,420.00,REVENUE,Cliff Phillips Landscapes
Gosport Borough Council,,CULTURAL AND RELATED SERVICES,H4-11,,,,GROUNDS MAINTENANCE COSTS,,,,,05/11/15,72456,"1,970.00",REVENUE,Cliff Phillips Landscapes
Gosport Borough Council,,CULTURAL AND RELATED SERVICES,H4-11,,,,GROUNDS MAINTENANCE COSTS,,,,,19/11/15,72881,299.34,REVENUE,Gs Building Services Limited
Gosport Borough Council,,CULTURAL AND RELATED SERVICES,H4-11,,,,GROUNDS MAINTENANCE COSTS,,,,,12/11/15,72539,769.00,REVENUE,Gs Building Services Limited
Gosport Borough Council,,CULTURAL AND RELATED SERVICES,H4-11,,,,GROUNDS MAINTENANCE COSTS,,,,,26/11/15,73163,576.00,REVENUE,Hanson Aggregates Plc  (Hqpe Limited)
Gosport Borough Council,,CULTURAL AND RELATED SERVICES,H4-11,,,,GROUNDS MAINTENANCE COSTS,,,,,12/11/15,72448,"1,250.00",REVENUE,Cliff Phillips Landscapes
Gosport Borough Council,,CULTURAL AND RELATED SERVICES,H4-11,,,,GROUNDS MAINTENANCE COSTS,,,,,19/11/15,72895,"1,915.00",REVENUE,South Coast Tree Surgeons
Gosport Borough Council,,CULTURAL AND RELATED SERVICES,H4-11,,,,GROUNDS MAINTENANCE COSTS,,,,,19/11/15,72870,630.00,REVENUE,Skyfell Tree Specialists Limited
Gosport Borough Council,,CULTURAL AND RELATED SERVICES,H4-11,,,,GROUNDS MAINTENANCE COSTS,,,,,12/11/15,72446,"1,750.00",REVENUE,Cliff Phillips Landscapes
Gosport Borough Council,,CULTURAL AND RELATED SERVICES,H4-11,,,,GROUNDS MAINTENANCE COSTS,,,,,05/11/15,72431,581.09,REVENUE,Sodexo - Horticultural Services
Gosport Borough Council,,CULTURAL AND RELATED SERVICES,H4-11,,,,MISCELLANEOUS EXPENSES,,,,,12/11/15,72451,880.00,REVENUE,Cliff Phillips Landscapes
Gosport Borough Council,,CULTURAL AND RELATED SERVICES,H4-11,,,,MISCELLANEOUS EXPENSES,,,,,05/11/15,72235,943.30,REVENUE,Glasdon Uk Limited
Gosport Borough Council,,CULTURAL AND RELATED SERVICES,H4-11,,,,MISCELLANEOUS EXPENSES,,,,,19/11/15,72903,"1,500.00",REVENUE,Neptune Outdoor Furniture
Gosport Borough Council,,CULTURAL AND RELATED SERVICES,H4-11,,,,WATER SERVICES,,,,,05/11/15,72526,645.91,REVENUE,Southern Water
Gosport Borough Council,,CULTURAL AND RELATED SERVICES,H4-11,,,,WATER SERVICES,,,,,12/11/15,72698,481.49,REVENUE,Portsmouth Water Ltd
Gosport Borough Council,,CULTURAL AND RELATED SERVICES,H4-11,,,,"EQUIP, FURNITURE AND MATERIALS",,,,,19/11/15,72861,928.00,REVENUE,Proludic Limited
Gosport Borough Council,,CULTURAL AND RELATED SERVICES,H4-11,,,,"EQUIP, FURNITURE AND MATERIALS",,,,,19/11/15,72904,"1,509.00",REVENUE,Gb Sport & Leisure (Uk) Limited
Gosport Borough Council,,CULTURAL AND RELATED SERVICES,H4-11,,,,REPAIRS AND MAINT OF BUILDINGS,,,,,12/11/15,72730,941.78,REVENUE,"Lucas, Windebank & Mcnally  (Builders)"
Gosport Borough Council,,CULTURAL AND RELATED SERVICES,H4-11,,,,GROUNDS MAINTENANCE COSTS,,,,,19/11/15,72885,784.00,REVENUE,Gs Building Services Limited
Gosport Borough Council,,CULTURAL AND RELATED SERVICES,H4-11,,,,GROUNDS MAINTENANCE COSTS,,,,,12/11/15,72452,520.00,REVENUE,Cliff Phillips Landscapes
Gosport Borough Council,,CULTURAL AND RELATED SERVICES,H4-11,,,,DIRECT TRANSPORT COSTS,,,,,05/11/15,72481,106.93,REVENUE,Allstar Business Solutions Limited
Gosport Borough Council,,CULTURAL AND RELATED SERVICES,H4-11,,,,MISCELLANEOUS EXPENSES,,,,,05/11/15,72536,910.03,REVENUE,Biffa Waste Services Limited
Gosport Borough Council,,CULTURAL AND RELATED SERVICES,H4-11,,,,PRIVATE CONTRACTORS,,,,,19/11/15,72876,"60,000.00",REVENUE,Hampshire Cultural Trust Limited
Gosport Borough Council,,CULTURAL AND RELATED SERVICES,H4-11,,,,PRIVATE CONTRACTORS,,,,,05/11/15,72253,615.00,REVENUE,Taurus Waste Recycling Ltd / Zebra Waste
Gosport Borough Council,,CULTURAL AND RELATED SERVICES,H4-11,,,,MISCELLANEOUS EXPENSES,,,,,12/11/15,72677,"1,941.00",REVENUE,Hampshire Cultural Trust Limited
Gosport Borough Council,,ENV AND REGULATORY SERVICES,H4-12,,,,"EQUIP, FURNITURE AND MATERIALS",,,,,12/11/15,72500,"2,595.00",REVENUE,Urbaser Limited
Gosport Borough Council,,ENV AND REGULATORY SERVICES,H4-12,,,,"PRINTING, STAT & OFFICE EXP",,,,,19/11/15,72901,426.80,REVENUE,Longcombe Labels Limited
Gosport Borough Council,,ENV AND REGULATORY SERVICES,H4-12,,,,PRIVATE CONTRACTORS,,,,,05/11/15,72480,600.00,REVENUE,Palm Recycling Limited
Gosport Borough Council,,HIGHWAYS ROADS AND TRANSPORT,H4-2,,,,"EQUIP, FURNITURE AND MATERIALS",,,,,05/11/15,72479,"6,500.00",REVENUE,Chipside Limited
Gosport Borough Council,,HIGHWAYS ROADS AND TRANSPORT,H4-2,,,,SERVICES,,,,,05/11/15,72477,"2,910.40",REVENUE,Keyline Chartered Security
Gosport Borough Council,,ENV AND REGULATORY SERVICES,H4-12,,,,REPAIRS AND MAINT OF BUILDINGS,,,,,12/11/15,72616,487.49,REVENUE,Urbaser Limited
Gosport Borough Council,,ENV AND REGULATORY SERVICES,H4-12,,,,WATER SERVICES,,,,,05/11/15,72526,306.26,REVENUE,Southern Water
Gosport Borough Council,,ENV AND REGULATORY SERVICES,H4-12,,,,WATER SERVICES,,,,,12/11/15,72698,228.25,REVENUE,Portsmouth Water Ltd
Gosport Borough Council,,HIGHWAYS ROADS AND TRANSPORT,H4-2,,,,GROUNDS MAINTENANCE COSTS,,,,,12/11/15,72452,35.00,REVENUE,Cliff Phillips Landscapes
Gosport Borough Council,,HIGHWAYS ROADS AND TRANSPORT,H4-2,,,,GROUNDS MAINTENANCE COSTS,,,,,19/11/15,72895,"2,520.00",REVENUE,South Coast Tree Surgeons
Gosport Borough Council,,HIGHWAYS ROADS AND TRANSPORT,H4-2,,,,GROUNDS MAINTENANCE COSTS,,,,,19/11/15,72870,"3,010.00",REVENUE,Skyfell Tree Specialists Limited
Gosport Borough Council,,PLANNING SERVICES,H4-13,,,,PRIVATE CONTRACTORS,,,,,05/11/15,72459,"14,035.50",REVENUE,Seasonal Transformations
Gosport Borough Council,,HIGHWAYS ROADS AND TRANSPORT,H4-2,,,,GROUNDS MAINTENANCE COSTS,,,,,19/11/15,72834,485.14,REVENUE,Sodexo - Horticultural Services
Gosport Borough Council,,ENV AND REGULATORY SERVICES,H4-12,,,,GROUNDS MAINTENANCE COSTS,,,,,19/11/15,72499,"18,441.85",REVENUE,Apa Concrete Repairs Limited
Gosport Borough Council,,HIGHWAYS ROADS AND TRANSPORT,H4-2,,,,REPAIRS AND MAINT OF BUILDINGS,,,,,12/11/15,72502,560.00,REVENUE,Bramdean Developments Limited
Gosport Borough Council,,HIGHWAYS ROADS AND TRANSPORT,H4-2,,,,REPAIRS AND MAINT OF BUILDINGS,,,,,12/11/15,72501,"1,650.00",REVENUE,Bramdean Developments Limited
Gosport Borough Council,,CULTURAL AND RELATED SERVICES,H4-11,,,,REPAIRS AND MAINT OF BUILDINGS,,,,,26/11/15,73096,"2,766.48",REVENUE,Gs Building Services Limited
Gosport Borough Council,,CULTURAL AND RELATED SERVICES,H4-11,,,,WATER SERVICES,,,,,05/11/15,72526,752.76,REVENUE,Southern Water
Gosport Borough Council,,CULTURAL AND RELATED SERVICES,H4-11,,,,WATER SERVICES,,,,,12/11/15,72698,561.03,REVENUE,Portsmouth Water Ltd
Gosport Borough Council,,CULTURAL AND RELATED SERVICES,H4-11,,,,PRIVATE CONTRACTORS,,,,,05/11/15,72482,"1,281.46",REVENUE,Places For People Management Limited
Gosport Borough Council,,HOUSING SERVICES,H4-3,,,,GRANTS AND SUBSCRIPTIONS,,,,,12/11/15,72718,503.56,REVENUE,The Ec Roberts Centre Limited
Gosport Borough Council,,HOUSING SERVICES,H4-3,,,,GRANTS AND SUBSCRIPTIONS,,,,,25/11/15,73187,650.00,REVENUE,David Seymour & Associates
Gosport Borough Council,,HOUSING SERVICES,H4-3,,,,GRANTS AND SUBSCRIPTIONS,,,,,30/11/15,73245,625.00,REVENUE,Meon Valley Lets Limited
Gosport Borough Council,,HOUSING SERVICES,H4-3,,,,GRANTS AND SUBSCRIPTIONS,,,,,25/11/15,77036,624.99,REVENUE,Stoke Gardens Guest Houses
Gosport Borough Council,,HOUSING SERVICES,H4-3,,,,GRANTS AND SUBSCRIPTIONS,,,,,25/11/15,77038,636.84,REVENUE,Stoke Gardens Guest Houses
Gosport Borough Council,,HOUSING SERVICES,H4-3,,,,GRANTS AND SUBSCRIPTIONS,,,,,25/11/15,77037,763.15,REVENUE,Stoke Gardens Guest Houses
Gosport Borough Council,,HOUSING SERVICES,H4-3,,,,GRANTS AND SUBSCRIPTIONS,,,,,25/11/15,77039,624.99,REVENUE,REDACTED
Gosport Borough Council,,HOUSING SERVICES,H4-3,,,,GRANTS AND SUBSCRIPTIONS,,,,,25/11/15,77040,624.99,REVENUE,Brite-Move
Gosport Borough Council,,HOUSING SERVICES,H4-3,,,,GRANTS AND SUBSCRIPTIONS,,,,,25/11/15,77042,578.50,REVENUE,REDACTED
Gosport Borough Council,,HOUSING SERVICES,H4-3,,,,GRANTS AND SUBSCRIPTIONS,,,,,25/11/15,77059,575.00,REVENUE,David Seymour & Associates
Gosport Borough Council,,HOUSING SERVICES,H4-3,,,,GRANTS AND SUBSCRIPTIONS,,,,,25/11/15,77081,575.00,REVENUE,David Seymour & Associates
Gosport Borough Council,,HOUSING SERVICES,H4-3,,,,GRANTS AND SUBSCRIPTIONS,,,,,25/11/15,77077,575.00,REVENUE,David Seymour & Associates
Gosport Borough Council,,HOUSING SERVICES,H4-3,,,,GRANTS AND SUBSCRIPTIONS,,,,,25/11/15,77061,575.00,REVENUE,David Seymour & Associates
Gosport Borough Council,,HOUSING SERVICES,H4-3,,,,GRANTS AND SUBSCRIPTIONS,,,,,25/11/15,77078,575.00,REVENUE,David Seymour & Associates
Gosport Borough Council,,HOUSING SERVICES,H4-3,,,,GRANTS AND SUBSCRIPTIONS,,,,,25/11/15,77067,575.00,REVENUE,David Seymour & Associates
Gosport Borough Council,,HOUSING SERVICES,H4-3,,,,GRANTS AND SUBSCRIPTIONS,,,,,25/11/15,77072,575.00,REVENUE,David Seymour & Associates
Gosport Borough Council,,HOUSING SERVICES,H4-3,,,,GRANTS AND SUBSCRIPTIONS,,,,,25/11/15,77065,575.00,REVENUE,David Seymour & Associates
Gosport Borough Council,,HOUSING SERVICES,H4-3,,,,GRANTS AND SUBSCRIPTIONS,,,,,25/11/15,77044,575.00,REVENUE,David Seymour & Associates
Gosport Borough Council,,HOUSING SERVICES,H4-3,,,,GRANTS AND SUBSCRIPTIONS,,,,,25/11/15,77080,593.75,REVENUE,David Seymour & Associates
Gosport Borough Council,,HOUSING SERVICES,H4-3,,,,GRANTS AND SUBSCRIPTIONS,,,,,25/11/15,77049,595.00,REVENUE,David Seymour & Associates
Gosport Borough Council,,HOUSING SERVICES,H4-3,,,,GRANTS AND SUBSCRIPTIONS,,,,,25/11/15,77076,595.00,REVENUE,David Seymour & Associates
Gosport Borough Council,,HOUSING SERVICES,H4-3,,,,GRANTS AND SUBSCRIPTIONS,,,,,25/11/15,77057,595.00,REVENUE,David Seymour & Associates
Gosport Borough Council,,HOUSING SERVICES,H4-3,,,,GRANTS AND SUBSCRIPTIONS,,,,,25/11/15,77060,595.00,REVENUE,David Seymour & Associates
Gosport Borough Council,,HOUSING SERVICES,H4-3,,,,GRANTS AND SUBSCRIPTIONS,,,,,25/11/15,77070,595.00,REVENUE,David Seymour & Associates
Gosport Borough Council,,HOUSING SERVICES,H4-3,,,,GRANTS AND SUBSCRIPTIONS,,,,,25/11/15,77079,624.99,REVENUE,David Seymour & Associates
Gosport Borough Council,,HOUSING SERVICES,H4-3,,,,GRANTS AND SUBSCRIPTIONS,,,,,25/11/15,77075,624.99,REVENUE,David Seymour & Associates
Gosport Borough Council,,HOUSING SERVICES,H4-3,,,,GRANTS AND SUBSCRIPTIONS,,,,,25/11/15,77066,624.99,REVENUE,David Seymour & Associates
Gosport Borough Council,,HOUSING SERVICES,H4-3,,,,GRANTS AND SUBSCRIPTIONS,,,,,25/11/15,77050,624.99,REVENUE,David Seymour & Associates
Gosport Borough Council,,HOUSING SERVICES,H4-3,,,,GRANTS AND SUBSCRIPTIONS,,,,,25/11/15,77062,624.99,REVENUE,David Seymour & Associates
Gosport Borough Council,,HOUSING SERVICES,H4-3,,,,GRANTS AND SUBSCRIPTIONS,,,,,25/11/15,77069,624.99,REVENUE,David Seymour & Associates
Gosport Borough Council,,HOUSING SERVICES,H4-3,,,,GRANTS AND SUBSCRIPTIONS,,,,,25/11/15,77064,624.99,REVENUE,David Seymour & Associates
Gosport Borough Council,,HOUSING SERVICES,H4-3,,,,GRANTS AND SUBSCRIPTIONS,,,,,25/11/15,77083,624.99,REVENUE,David Seymour & Associates
Gosport Borough Council,,HOUSING SERVICES,H4-3,,,,GRANTS AND SUBSCRIPTIONS,,,,,25/11/15,77046,624.99,REVENUE,David Seymour & Associates
Gosport Borough Council,,HOUSING SERVICES,H4-3,,,,GRANTS AND SUBSCRIPTIONS,,,,,25/11/15,77047,624.99,REVENUE,David Seymour & Associates
Gosport Borough Council,,HOUSING SERVICES,H4-3,,,,GRANTS AND SUBSCRIPTIONS,,,,,25/11/15,77048,624.99,REVENUE,David Seymour & Associates
Gosport Borough Council,,HOUSING SERVICES,H4-3,,,,GRANTS AND SUBSCRIPTIONS,,,,,25/11/15,77051,624.99,REVENUE,David Seymour & Associates
Gosport Borough Council,,HOUSING SERVICES,H4-3,,,,GRANTS AND SUBSCRIPTIONS,,,,,25/11/15,77063,675.00,REVENUE,David Seymour & Associates
Gosport Borough Council,,HOUSING SERVICES,H4-3,,,,GRANTS AND SUBSCRIPTIONS,,,,,25/11/15,77056,695.00,REVENUE,David Seymour & Associates
Gosport Borough Council,,HOUSING SERVICES,H4-3,,,,GRANTS AND SUBSCRIPTIONS,,,,,25/11/15,77068,695.00,REVENUE,David Seymour & Associates
Gosport Borough Council,,HOUSING SERVICES,H4-3,,,,GRANTS AND SUBSCRIPTIONS,,,,,25/11/15,77045,712.51,REVENUE,David Seymour & Associates
Gosport Borough Council,,HOUSING SERVICES,H4-3,,,,GRANTS AND SUBSCRIPTIONS,,,,,25/11/15,77052,750.00,REVENUE,David Seymour & Associates
Gosport Borough Council,,HOUSING SERVICES,H4-3,,,,GRANTS AND SUBSCRIPTIONS,,,,,25/11/15,77043,920.41,REVENUE,David Seymour & Associates
Gosport Borough Council,,HOUSING SERVICES,H4-3,,,,GRANTS AND SUBSCRIPTIONS,,,,,25/11/15,77084,624.99,REVENUE,REDACTED
Gosport Borough Council,,HOUSING SERVICES,H4-3,,,,GRANTS AND SUBSCRIPTIONS,,,,,25/11/15,77085,740.00,REVENUE,REDACTED
Gosport Borough Council,,HOUSING SERVICES,H4-3,,,,GRANTS AND SUBSCRIPTIONS,,,,,25/11/15,77086,894.73,REVENUE,REDACTED
Gosport Borough Council,,HOUSING SERVICES,H4-3,,,,GRANTS AND SUBSCRIPTIONS,,,,,25/11/15,77087,593.75,REVENUE,REDACTED
Gosport Borough Council,,HOUSING SERVICES,H4-3,,,,GRANTS AND SUBSCRIPTIONS,,,,,25/11/15,77088,750.00,REVENUE,REDACTED
Gosport Borough Council,,HOUSING SERVICES,H4-3,,,,GRANTS AND SUBSCRIPTIONS,,,,,25/11/15,77035,616.43,REVENUE,Elite Property Management
Gosport Borough Council,,HOUSING SERVICES,H4-3,,,,GRANTS AND SUBSCRIPTIONS,,,,,25/11/15,77095,624.99,REVENUE,Elite Property Management
Gosport Borough Council,,HOUSING SERVICES,H4-3,,,,GRANTS AND SUBSCRIPTIONS,,,,,25/11/15,77094,624.99,REVENUE,Elite Property Management
Gosport Borough Council,,HOUSING SERVICES,H4-3,,,,GRANTS AND SUBSCRIPTIONS,,,,,25/11/15,77097,624.99,REVENUE,Elite Property Management
Gosport Borough Council,,HOUSING SERVICES,H4-3,,,,GRANTS AND SUBSCRIPTIONS,,,,,25/11/15,77092,624.99,REVENUE,Elite Property Management
Gosport Borough Council,,HOUSING SERVICES,H4-3,,,,GRANTS AND SUBSCRIPTIONS,,,,,25/11/15,77099,624.99,REVENUE,Elite Property Management
Gosport Borough Council,,HOUSING SERVICES,H4-3,,,,GRANTS AND SUBSCRIPTIONS,,,,,25/11/15,77096,624.99,REVENUE,Elite Property Management
Gosport Borough Council,,HOUSING SERVICES,H4-3,,,,GRANTS AND SUBSCRIPTIONS,,,,,25/11/15,77098,624.99,REVENUE,Elite Property Management
Gosport Borough Council,,HOUSING SERVICES,H4-3,,,,GRANTS AND SUBSCRIPTIONS,,,,,25/11/15,77089,712.51,REVENUE,Elite Property Management
Gosport Borough Council,,HOUSING SERVICES,H4-3,,,,GRANTS AND SUBSCRIPTIONS,,,,,25/11/15,77100,750.00,REVENUE,Elite Property Management
Gosport Borough Council,,HOUSING SERVICES,H4-3,,,,GRANTS AND SUBSCRIPTIONS,,,,,25/11/15,77093,890.00,REVENUE,Elite Property Management
Gosport Borough Council,,HOUSING SERVICES,H4-3,,,,GRANTS AND SUBSCRIPTIONS,,,,,25/11/15,77102,615.33,REVENUE,REDACTED
Gosport Borough Council,,HOUSING SERVICES,H4-3,,,,GRANTS AND SUBSCRIPTIONS,,,,,25/11/15,77101,624.99,REVENUE,REDACTED
Gosport Borough Council,,HOUSING SERVICES,H4-3,,,,GRANTS AND SUBSCRIPTIONS,,,,,25/11/15,77103,624.99,REVENUE,Fairhalls
Gosport Borough Council,,HOUSING SERVICES,H4-3,,,,GRANTS AND SUBSCRIPTIONS,,,,,25/11/15,77104,920.41,REVENUE,Fairhalls
Gosport Borough Council,,HOUSING SERVICES,H4-3,,,,GRANTS AND SUBSCRIPTIONS,,,,,25/11/15,77105,920.41,REVENUE,Fine Cars (Lee-On-Solent) Limited
Gosport Borough Council,,HOUSING SERVICES,H4-3,,,,GRANTS AND SUBSCRIPTIONS,,,,,25/11/15,77107,-513.69,REVENUE,REDACTED
Gosport Borough Council,,HOUSING SERVICES,H4-3,,,,GRANTS AND SUBSCRIPTIONS,,,,,25/11/15,77106,624.99,REVENUE,REDACTED
Gosport Borough Council,,HOUSING SERVICES,H4-3,,,,GRANTS AND SUBSCRIPTIONS,,,,,25/11/15,77111,624.99,REVENUE,REDACTED
Gosport Borough Council,,HOUSING SERVICES,H4-3,,,,GRANTS AND SUBSCRIPTIONS,,,,,25/11/15,77108,624.99,REVENUE,REDACTED
Gosport Borough Council,,HOUSING SERVICES,H4-3,,,,GRANTS AND SUBSCRIPTIONS,,,,,25/11/15,77109,624.99,REVENUE,REDACTED
Gosport Borough Council,,HOUSING SERVICES,H4-3,,,,GRANTS AND SUBSCRIPTIONS,,,,,25/11/15,77110,750.00,REVENUE,REDACTED
Gosport Borough Council,,HOUSING SERVICES,H4-3,,,,GRANTS AND SUBSCRIPTIONS,,,,,25/11/15,77112,712.51,REVENUE,REDACTED
Gosport Borough Council,,HOUSING SERVICES,H4-3,,,,GRANTS AND SUBSCRIPTIONS,,,,,25/11/15,77113,740.00,REVENUE,REDACTED
Gosport Borough Council,,HOUSING SERVICES,H4-3,,,,GRANTS AND SUBSCRIPTIONS,,,,,25/11/15,77115,624.99,REVENUE,REDACTED
Gosport Borough Council,,HOUSING SERVICES,H4-3,,,,GRANTS AND SUBSCRIPTIONS,,,,,25/11/15,77117,712.51,REVENUE,REDACTED
Gosport Borough Council,,HOUSING SERVICES,H4-3,,,,GRANTS AND SUBSCRIPTIONS,,,,,25/11/15,77118,624.99,REVENUE,REDACTED
Gosport Borough Council,,HOUSING SERVICES,H4-3,,,,GRANTS AND SUBSCRIPTIONS,,,,,25/11/15,77120,624.99,REVENUE,Fallaize Properties Ltd
Gosport Borough Council,,HOUSING SERVICES,H4-3,,,,GRANTS AND SUBSCRIPTIONS,,,,,25/11/15,77119,624.99,REVENUE,Fallaize Properties Ltd
Gosport Borough Council,,HOUSING SERVICES,H4-3,,,,GRANTS AND SUBSCRIPTIONS,,,,,25/11/15,77121,624.99,REVENUE,REDACTED
Gosport Borough Council,,HOUSING SERVICES,H4-3,,,,GRANTS AND SUBSCRIPTIONS,,,,,25/11/15,77122,920.41,REVENUE,REDACTED
Gosport Borough Council,,HOUSING SERVICES,H4-3,,,,GRANTS AND SUBSCRIPTIONS,,,,,25/11/15,77123,575.00,REVENUE,Affordable Property Solutions Dorset Ltd
Gosport Borough Council,,HOUSING SERVICES,H4-3,,,,GRANTS AND SUBSCRIPTIONS,,,,,25/11/15,77124,725.00,REVENUE,REDACTED
Gosport Borough Council,,HOUSING SERVICES,H4-3,,,,GRANTS AND SUBSCRIPTIONS,,,,,25/11/15,77125,624.99,REVENUE,REDACTED
Gosport Borough Council,,HOUSING SERVICES,H4-3,,,,GRANTS AND SUBSCRIPTIONS,,,,,25/11/15,77127,624.99,REVENUE,REDACTED
Gosport Borough Council,,HOUSING SERVICES,H4-3,,,,GRANTS AND SUBSCRIPTIONS,,,,,25/11/15,77128,624.99,REVENUE,REDACTED
Gosport Borough Council,,HOUSING SERVICES,H4-3,,,,GRANTS AND SUBSCRIPTIONS,,,,,25/11/15,77130,729.00,REVENUE,REDACTED
Gosport Borough Council,,HOUSING SERVICES,H4-3,,,,GRANTS AND SUBSCRIPTIONS,,,,,25/11/15,77131,624.99,REVENUE,REDACTED
Gosport Borough Council,,HOUSING SERVICES,H4-3,,,,GRANTS AND SUBSCRIPTIONS,,,,,25/11/15,77132,712.51,REVENUE,REDACTED
Gosport Borough Council,,HOUSING SERVICES,H4-3,,,,GRANTS AND SUBSCRIPTIONS,,,,,25/11/15,77133,624.99,REVENUE,REDACTED
Gosport Borough Council,,HOUSING SERVICES,H4-3,,,,GRANTS AND SUBSCRIPTIONS,,,,,25/11/15,77138,900.00,REVENUE,REDACTED
Gosport Borough Council,,HOUSING SERVICES,H4-3,,,,GRANTS AND SUBSCRIPTIONS,,,,,25/11/15,77139,624.99,REVENUE,REDACTED
Gosport Borough Council,,HOUSING SERVICES,H4-3,,,,GRANTS AND SUBSCRIPTIONS,,,,,25/11/15,77140,624.99,REVENUE,REDACTED
Gosport Borough Council,,HOUSING SERVICES,H4-3,,,,GRANTS AND SUBSCRIPTIONS,,,,,25/11/15,77141,750.00,REVENUE,REDACTED
Gosport Borough Council,,HOUSING SERVICES,H4-3,,,,GRANTS AND SUBSCRIPTIONS,,,,,25/11/15,77142,624.99,REVENUE,REDACTED
Gosport Borough Council,,HOUSING SERVICES,H4-3,,,,GRANTS AND SUBSCRIPTIONS,,,,,25/11/15,77143,619.36,REVENUE,REDACTED
Gosport Borough Council,,HOUSING SERVICES,H4-3,,,,GRANTS AND SUBSCRIPTIONS,,,,,25/11/15,77144,624.99,REVENUE,REDACTED
Gosport Borough Council,,HOUSING SERVICES,H4-3,,,,GRANTS AND SUBSCRIPTIONS,,,,,25/11/15,77145,624.99,REVENUE,REDACTED
Gosport Borough Council,,HOUSING SERVICES,H4-3,,,,GRANTS AND SUBSCRIPTIONS,,,,,25/11/15,77148,624.99,REVENUE,REDACTED
Gosport Borough Council,,HOUSING SERVICES,H4-3,,,,GRANTS AND SUBSCRIPTIONS,,,,,25/11/15,77149,624.99,REVENUE,REDACTED
Gosport Borough Council,,HOUSING SERVICES,H4-3,,,,GRANTS AND SUBSCRIPTIONS,,,,,25/11/15,77150,624.99,REVENUE,REDACTED
Gosport Borough Council,,HOUSING SERVICES,H4-3,,,,GRANTS AND SUBSCRIPTIONS,,,,,25/11/15,77151,624.99,REVENUE,REDACTED
Gosport Borough Council,,HOUSING SERVICES,H4-3,,,,GRANTS AND SUBSCRIPTIONS,,,,,25/11/15,77152,747.93,REVENUE,REDACTED
Gosport Borough Council,,HOUSING SERVICES,H4-3,,,,GRANTS AND SUBSCRIPTIONS,,,,,25/11/15,77153,624.99,REVENUE,REDACTED
Gosport Borough Council,,HOUSING SERVICES,H4-3,,,,GRANTS AND SUBSCRIPTIONS,,,,,25/11/15,77155,725.00,REVENUE,REDACTED
Gosport Borough Council,,HOUSING SERVICES,H4-3,,,,GRANTS AND SUBSCRIPTIONS,,,,,25/11/15,77156,712.51,REVENUE,REDACTED
Gosport Borough Council,,HOUSING SERVICES,H4-3,,,,GRANTS AND SUBSCRIPTIONS,,,,,25/11/15,77158,575.00,REVENUE,REDACTED
Gosport Borough Council,,HOUSING SERVICES,H4-3,,,,GRANTS AND SUBSCRIPTIONS,,,,,25/11/15,77160,624.99,REVENUE,REDACTED
Gosport Borough Council,,HOUSING SERVICES,H4-3,,,,GRANTS AND SUBSCRIPTIONS,,,,,25/11/15,77161,750.00,REVENUE,REDACTED
Gosport Borough Council,,HOUSING SERVICES,H4-3,,,,GRANTS AND SUBSCRIPTIONS,,,,,25/11/15,77162,750.00,REVENUE,REDACTED
Gosport Borough Council,,HOUSING SERVICES,H4-3,,,,GRANTS AND SUBSCRIPTIONS,,,,,25/11/15,77167,624.99,REVENUE,Pg Properties  (Plummer & Griffiths)
Gosport Borough Council,,HOUSING SERVICES,H4-3,,,,GRANTS AND SUBSCRIPTIONS,,,,,25/11/15,77168,624.99,REVENUE,Pg Properties  (Plummer & Griffiths)
Gosport Borough Council,,HOUSING SERVICES,H4-3,,,,GRANTS AND SUBSCRIPTIONS,,,,,25/11/15,77166,624.99,REVENUE,Pg Properties  (Plummer & Griffiths)
Gosport Borough Council,,HOUSING SERVICES,H4-3,,,,GRANTS AND SUBSCRIPTIONS,,,,,25/11/15,77172,624.99,REVENUE,Pg Properties  (Plummer & Griffiths)
Gosport Borough Council,,HOUSING SERVICES,H4-3,,,,GRANTS AND SUBSCRIPTIONS,,,,,25/11/15,77169,624.99,REVENUE,Pg Properties  (Plummer & Griffiths)
Gosport Borough Council,,HOUSING SERVICES,H4-3,,,,GRANTS AND SUBSCRIPTIONS,,,,,25/11/15,77163,624.99,REVENUE,Pg Properties  (Plummer & Griffiths)
Gosport Borough Council,,HOUSING SERVICES,H4-3,,,,GRANTS AND SUBSCRIPTIONS,,,,,25/11/15,77173,750.00,REVENUE,Pg Properties  (Plummer & Griffiths)
Gosport Borough Council,,HOUSING SERVICES,H4-3,,,,GRANTS AND SUBSCRIPTIONS,,,,,25/11/15,77170,750.00,REVENUE,Pg Properties  (Plummer & Griffiths)
Gosport Borough Council,,HOUSING SERVICES,H4-3,,,,GRANTS AND SUBSCRIPTIONS,,,,,25/11/15,77171,750.00,REVENUE,Pg Properties  (Plummer & Griffiths)
Gosport Borough Council,,HOUSING SERVICES,H4-3,,,,GRANTS AND SUBSCRIPTIONS,,,,,25/11/15,77165,750.00,REVENUE,Pg Properties  (Plummer & Griffiths)
Gosport Borough Council,,HOUSING SERVICES,H4-3,,,,GRANTS AND SUBSCRIPTIONS,,,,,25/11/15,77164,750.00,REVENUE,Pg Properties  (Plummer & Griffiths)
Gosport Borough Council,,HOUSING SERVICES,H4-3,,,,GRANTS AND SUBSCRIPTIONS,,,,,25/11/15,77175,624.99,REVENUE,REDACTED
Gosport Borough Council,,HOUSING SERVICES,H4-3,,,,GRANTS AND SUBSCRIPTIONS,,,,,25/11/15,77176,624.99,REVENUE,REDACTED
Gosport Borough Council,,HOUSING SERVICES,H4-3,,,,GRANTS AND SUBSCRIPTIONS,,,,,25/11/15,77178,624.99,REVENUE,REDACTED
Gosport Borough Council,,HOUSING SERVICES,H4-3,,,,GRANTS AND SUBSCRIPTIONS,,,,,25/11/15,77177,624.99,REVENUE,REDACTED
Gosport Borough Council,,HOUSING SERVICES,H4-3,,,,GRANTS AND SUBSCRIPTIONS,,,,,25/11/15,77179,624.99,REVENUE,REDACTED
Gosport Borough Council,,HOUSING SERVICES,H4-3,,,,GRANTS AND SUBSCRIPTIONS,,,,,25/11/15,77182,570.00,REVENUE,REDACTED
Gosport Borough Council,,HOUSING SERVICES,H4-3,,,,GRANTS AND SUBSCRIPTIONS,,,,,25/11/15,77181,624.99,REVENUE,REDACTED
Gosport Borough Council,,HOUSING SERVICES,H4-3,,,,GRANTS AND SUBSCRIPTIONS,,,,,25/11/15,77180,890.00,REVENUE,REDACTED
Gosport Borough Council,,HOUSING SERVICES,H4-3,,,,GRANTS AND SUBSCRIPTIONS,,,,,25/11/15,77033,513.69,REVENUE,REDACTED
Gosport Borough Council,,HOUSING SERVICES,H4-3,,,,GRANTS AND SUBSCRIPTIONS,,,,,25/11/15,77183,624.99,REVENUE,REDACTED
Gosport Borough Council,,HOUSING SERVICES,H4-3,,,,GRANTS AND SUBSCRIPTIONS,,,,,25/11/15,77184,624.99,REVENUE,REDACTED
Gosport Borough Council,,HOUSING SERVICES,H4-3,,,,GRANTS AND SUBSCRIPTIONS,,,,,25/11/15,77185,619.00,REVENUE,REDACTED
Gosport Borough Council,,HOUSING SERVICES,H4-3,,,,GRANTS AND SUBSCRIPTIONS,,,,,25/11/15,77187,575.00,REVENUE,REDACTED
Gosport Borough Council,,HOUSING SERVICES,H4-3,,,,GRANTS AND SUBSCRIPTIONS,,,,,25/11/15,77186,624.99,REVENUE,REDACTED
Gosport Borough Council,,HOUSING SERVICES,H4-3,,,,GRANTS AND SUBSCRIPTIONS,,,,,25/11/15,77188,624.99,REVENUE,REDACTED
Gosport Borough Council,,HOUSING SERVICES,H4-3,,,,GRANTS AND SUBSCRIPTIONS,,,,,25/11/15,77189,624.99,REVENUE,REDACTED
Gosport Borough Council,,HOUSING SERVICES,H4-3,,,,GRANTS AND SUBSCRIPTIONS,,,,,25/11/15,75804,-534.24,REVENUE,REDACTED
Gosport Borough Council,,HOUSING SERVICES,H4-3,,,,GRANTS AND SUBSCRIPTIONS,,,,,25/11/15,77191,624.99,REVENUE,REDACTED
Gosport Borough Council,,HOUSING SERVICES,H4-3,,,,GRANTS AND SUBSCRIPTIONS,,,,,25/11/15,77193,624.99,REVENUE,REDACTED
Gosport Borough Council,,HOUSING SERVICES,H4-3,,,,GRANTS AND SUBSCRIPTIONS,,,,,25/11/15,77194,714.23,REVENUE,REDACTED
Gosport Borough Council,,HOUSING SERVICES,H4-3,,,,GRANTS AND SUBSCRIPTIONS,,,,,25/11/15,77196,750.00,REVENUE,REDACTED
Gosport Borough Council,,HOUSING SERVICES,H4-3,,,,GRANTS AND SUBSCRIPTIONS,,,,,25/11/15,77195,750.00,REVENUE,REDACTED
Gosport Borough Council,,HOUSING SERVICES,H4-3,,,,GRANTS AND SUBSCRIPTIONS,,,,,25/11/15,77197,624.99,REVENUE,REDACTED
Gosport Borough Council,,HOUSING SERVICES,H4-3,,,,GRANTS AND SUBSCRIPTIONS,,,,,25/11/15,77199,624.99,REVENUE,REDACTED
Gosport Borough Council,,HOUSING SERVICES,H4-3,,,,GRANTS AND SUBSCRIPTIONS,,,,,25/11/15,77200,624.99,REVENUE,REDACTED
Gosport Borough Council,,HOUSING SERVICES,H4-3,,,,GRANTS AND SUBSCRIPTIONS,,,,,25/11/15,77201,624.99,REVENUE,REDACTED
Gosport Borough Council,,HOUSING SERVICES,H4-3,,,,GRANTS AND SUBSCRIPTIONS,,,,,25/11/15,77202,624.99,REVENUE,REDACTED
Gosport Borough Council,,HOUSING SERVICES,H4-3,,,,GRANTS AND SUBSCRIPTIONS,,,,,25/11/15,77206,624.99,REVENUE,REDACTED
Gosport Borough Council,,HOUSING SERVICES,H4-3,,,,GRANTS AND SUBSCRIPTIONS,,,,,25/11/15,77207,575.00,REVENUE,REDACTED
Gosport Borough Council,,HOUSING SERVICES,H4-3,,,,GRANTS AND SUBSCRIPTIONS,,,,,25/11/15,77208,712.51,REVENUE,REDACTED
Gosport Borough Council,,HOUSING SERVICES,H4-3,,,,GRANTS AND SUBSCRIPTIONS,,,,,25/11/15,77209,575.00,REVENUE,REDACTED
Gosport Borough Council,,HOUSING SERVICES,H4-3,,,,GRANTS AND SUBSCRIPTIONS,,,,,25/11/15,77211,624.99,REVENUE,REDACTED
Gosport Borough Council,,HOUSING SERVICES,H4-3,,,,GRANTS AND SUBSCRIPTIONS,,,,,25/11/15,77210,624.99,REVENUE,REDACTED
Gosport Borough Council,,HOUSING SERVICES,H4-3,,,,GRANTS AND SUBSCRIPTIONS,,,,,25/11/15,77212,680.00,REVENUE,REDACTED
Gosport Borough Council,,HOUSING SERVICES,H4-3,,,,GRANTS AND SUBSCRIPTIONS,,,,,25/11/15,77213,621.00,REVENUE,Lbw Lettings (Mjwps Limited)
Gosport Borough Council,,HOUSING SERVICES,H4-3,,,,GRANTS AND SUBSCRIPTIONS,,,,,25/11/15,77214,575.00,REVENUE,REDACTED
Gosport Borough Council,,HOUSING SERVICES,H4-3,,,,GRANTS AND SUBSCRIPTIONS,,,,,25/11/15,77215,624.99,REVENUE,REDACTED
Gosport Borough Council,,HOUSING SERVICES,H4-3,,,,GRANTS AND SUBSCRIPTIONS,,,,,25/11/15,74772,-999.96,REVENUE,REDACTED
Gosport Borough Council,,HOUSING SERVICES,H4-3,,,,GRANTS AND SUBSCRIPTIONS,,,,,25/11/15,77217,748.36,REVENUE,REDACTED
Gosport Borough Council,,HOUSING SERVICES,H4-3,,,,GRANTS AND SUBSCRIPTIONS,,,,,25/11/15,77220,624.99,REVENUE,REDACTED
Gosport Borough Council,,HOUSING SERVICES,H4-3,,,,GRANTS AND SUBSCRIPTIONS,,,,,25/11/15,77221,624.99,REVENUE,REDACTED
Gosport Borough Council,,HOUSING SERVICES,H4-3,,,,GRANTS AND SUBSCRIPTIONS,,,,,25/11/15,77222,624.99,REVENUE,REDACTED
Gosport Borough Council,,HOUSING SERVICES,H4-3,,,,GRANTS AND SUBSCRIPTIONS,,,,,25/11/15,77223,624.99,REVENUE,REDACTED
Gosport Borough Council,,HOUSING SERVICES,H4-3,,,,GRANTS AND SUBSCRIPTIONS,,,,,25/11/15,77224,750.00,REVENUE,REDACTED
Gosport Borough Council,,HOUSING SERVICES,H4-3,,,,GRANTS AND SUBSCRIPTIONS,,,,,25/11/15,77228,850.00,REVENUE,REDACTED
Gosport Borough Council,,HOUSING SERVICES,H4-3,,,,GRANTS AND SUBSCRIPTIONS,,,,,25/11/15,77229,624.99,REVENUE,REDACTED
Gosport Borough Council,,HOUSING SERVICES,H4-3,,,,GRANTS AND SUBSCRIPTIONS,,,,,25/11/15,77230,575.00,REVENUE,REDACTED
Gosport Borough Council,,HOUSING SERVICES,H4-3,,,,GRANTS AND SUBSCRIPTIONS,,,,,25/11/15,77231,712.51,REVENUE,REDACTED
Gosport Borough Council,,HOUSING SERVICES,H4-3,,,,GRANTS AND SUBSCRIPTIONS,,,,,25/11/15,77233,675.00,REVENUE,REDACTED
Gosport Borough Council,,HOUSING SERVICES,H4-3,,,,GRANTS AND SUBSCRIPTIONS,,,,,25/11/15,77235,624.99,REVENUE,REDACTED
Gosport Borough Council,,HOUSING SERVICES,H4-3,,,,GRANTS AND SUBSCRIPTIONS,,,,,25/11/15,77237,575.00,REVENUE,REDACTED
Gosport Borough Council,,HOUSING SERVICES,H4-3,,,,GRANTS AND SUBSCRIPTIONS,,,,,25/11/15,77239,704.34,REVENUE,REDACTED
Gosport Borough Council,,HOUSING SERVICES,H4-3,,,,GRANTS AND SUBSCRIPTIONS,,,,,25/11/15,77238,750.00,REVENUE,REDACTED
Gosport Borough Council,,HOUSING SERVICES,H4-3,,,,GRANTS AND SUBSCRIPTIONS,,,,,25/11/15,77240,624.99,REVENUE,REDACTED
Gosport Borough Council,,HOUSING SERVICES,H4-3,,,,GRANTS AND SUBSCRIPTIONS,,,,,25/11/15,77241,712.51,REVENUE,REDACTED
Gosport Borough Council,,HOUSING SERVICES,H4-3,,,,GRANTS AND SUBSCRIPTIONS,,,,,25/11/15,77242,747.93,REVENUE,REDACTED
Gosport Borough Council,,HOUSING SERVICES,H4-3,,,,GRANTS AND SUBSCRIPTIONS,,,,,25/11/15,77243,630.00,REVENUE,REDACTED
Gosport Borough Council,,HOUSING SERVICES,H4-3,,,,GRANTS AND SUBSCRIPTIONS,,,,,25/11/15,77245,624.99,REVENUE,REDACTED
Gosport Borough Council,,HOUSING SERVICES,H4-3,,,,GRANTS AND SUBSCRIPTIONS,,,,,25/11/15,77246,624.99,REVENUE,REDACTED
Gosport Borough Council,,HOUSING SERVICES,H4-3,,,,GRANTS AND SUBSCRIPTIONS,,,,,25/11/15,77249,511.75,REVENUE,REDACTED
Gosport Borough Council,,HOUSING SERVICES,H4-3,,,,GRANTS AND SUBSCRIPTIONS,,,,,25/11/15,77252,619.36,REVENUE,REDACTED
Gosport Borough Council,,HOUSING SERVICES,H4-3,,,,MISCELLANEOUS EXPENSES,,,,,12/11/15,72702,750.00,REVENUE,Elite Property Management
Gosport Borough Council,,HOUSING SERVICES,H4-3,,,,MISCELLANEOUS EXPENSES,,,,,30/11/15,73244,555.00,REVENUE,REDACTED
Gosport Borough Council,,HOUSING SERVICES,H4-3,,,,PUBLIC TRANSPORT,,,,,19/11/15,4789,76.80,REVENUE,Rsp Travel Warrants
Gosport Borough Council,,CENTRAL SERVICES TO THE PUBLIC,H4-5,,,,"PRINTING, STAT & OFFICE EXP",,,,,12/11/15,72696,"1,720.84",REVENUE,Mail & Print Services Uk Ltd (Mps)
Gosport Borough Council,,CENTRAL SERVICES TO THE PUBLIC,H4-5,,,,COMMUNICATIONS AND COMPUTING,,,,,12/11/15,72696,128.00,REVENUE,Mail & Print Services Uk Ltd (Mps)
Gosport Borough Council,,CENTRAL SERVICES TO THE PUBLIC,H4-5,,,,PRIVATE CONTRACTORS,,,,,19/11/15,72923,"1,267.50",REVENUE,Hampshire County Council
Gosport Borough Council,,HOUSING SERVICES,H4-3,,,,HOUSING BENEFITS,,,,,19/11/15,4802,"29,606.30",REVENUE,Benefit Rent Allowance
Gosport Borough Council,,HOUSING SERVICES,H4-3,,,,HOUSING BENEFITS,,,,,19/11/15,4787,"31,240.10",REVENUE,Benefit Rent Allowance
Gosport Borough Council,,HOUSING SERVICES,H4-3,,,,HOUSING BENEFITS,,,,,19/11/15,4791,"352,024.82",REVENUE,Benefit Rent Allowance
Gosport Borough Council,,HOUSING SERVICES,H4-3,,,,HOUSING BENEFITS,,,,,27/11/15,4827,"1,069,097.39",REVENUE,Benefit Rent Allowance
Gosport Borough Council,,PLANNING SERVICES,H4-13,,,,MISCELLANEOUS EXPENSES,,,,,12/11/15,72677,"1,059.00",REVENUE,Hampshire Cultural Trust Limited
Gosport Borough Council,,PLANNING SERVICES,H4-13,,,,CAPITAL - SUPPLIES & SERVICES,,,,,26/11/15,73183,"3,969.00",REVENUE,Fabrik Limited
Gosport Borough Council,,PLANNING SERVICES,H4-13,,,,CAPITAL - SUPPLIES & SERVICES,,,,,19/11/15,72915,995.00,REVENUE,Barrell Treecare Limited
Gosport Borough Council,,ENV AND REGULATORY SERVICES,H4-12,,,,PRIVATE CONTRACTORS,,,,,19/11/15,72890,"10,029.70",REVENUE,Enigma Security Solutions Limited
Gosport Borough Council,,PLANNING SERVICES,H4-13,,,,SERVICES,,,,,12/11/15,72618,690.00,REVENUE,Hampshire County Council
Gosport Borough Council,,PLANNING SERVICES,H4-13,,,,REPAIRS AND MAINT OF BUILDINGS,,,,,26/11/15,73099,956.50,REVENUE,Gs Building Services Limited
Gosport Borough Council,,CENTRAL SERVICES TO THE PUBLIC,H4-5,,,,GRANTS AND SUBSCRIPTIONS,,,,,05/11/15,72476,"2,035.72",REVENUE,Hampshire County Council
Gosport Borough Council,,CENTRAL SERVICES TO THE PUBLIC,H4-5,,,,GRANTS AND SUBSCRIPTIONS,,,,,19/11/15,72929,"2,035.72",REVENUE,Hampshire County Council
Gosport Borough Council,,CORPORATE AND DEMOCRATIC CORE,H4-4,,,,DIRECT TRANSPORT COSTS,,,,,05/11/15,72481,55.51,REVENUE,Allstar Business Solutions Limited
Gosport Borough Council,,CORPORATE AND DEMOCRATIC CORE,H4-4,,,,DIRECT TRANSPORT COSTS,,,,,26/11/15,73139,20.00,REVENUE,REDACTED
Gosport Borough Council,,CORPORATE AND DEMOCRATIC CORE,H4-4,,,,CONTRACT HIRE & OPER LEASES,,,,,19/11/15,4792,343.80,REVENUE,Arval - Bnp Paribas Group
Gosport Borough Council,,CORPORATE AND DEMOCRATIC CORE,H4-4,,,,"CLOTHES, UNIFORM AND LAUNDRY",,,,,12/11/15,72458,388.00,REVENUE,Michaels Civic Robes
Gosport Borough Council,,CORPORATE AND DEMOCRATIC CORE,H4-4,,,,MISCELLANEOUS EXPENSES,,,,,19/11/15,72881,155.15,REVENUE,Gs Building Services Limited
Gosport Borough Council,,CORPORATE AND DEMOCRATIC CORE,H4-4,,,,CATERING,,,,,26/11/15,73139,18.78,REVENUE,REDACTED
Gosport Borough Council,,CORPORATE AND DEMOCRATIC CORE,H4-4,,,,MISCELLANEOUS EXPENSES,,,,,26/11/15,73139,10.90,REVENUE,REDACTED
Gosport Borough Council,,CORPORATE AND DEMOCRATIC CORE,H4-4,,,,INDIRECT EMPLOYEE EXPENSES,,,,,05/11/15,72433,590.00,REVENUE,Inclusive Learning Limited  (Skill Boosters)
Gosport Borough Council,,CORPORATE AND DEMOCRATIC CORE,H4-4,,,,MISCELLANEOUS EXPENSES,,,,,27/11/15,4820,87.27,REVENUE,Edenred
Gosport Borough Council,,CORPORATE AND DEMOCRATIC CORE,H4-4,,,,"PRINTING, STAT & OFFICE EXP",,,,,05/11/15,72473,"3,007.12",REVENUE,Leaflet Distribution Services Limited (Lds)
Gosport Borough Council,,ENV AND REGULATORY SERVICES,H4-12,,,,MISCELLANEOUS EXPENSES,,,,,26/11/15,73162,512.00,REVENUE,Southern Co-Operative Funerals Limited
Gosport Borough Council,,CORPORATE AND DEMOCRATIC CORE,H4-4,,,,SERVICES,,,,,12/11/15,72639,"16,927.00",REVENUE,Ernst & Young Llp
Gosport Borough Council,,MIRS,H4-9,,,,LOSS ON IMPAIRMENT OF ASSETS,,,,,19/11/15,4790,"5,100.00",REVENUE,Asset Advantage Ltd
Gosport Borough Council,,PLANNING SERVICES,H4-13,,,,MISCELLANEOUS EXPENSES,,,,,26/11/15,73139,5.03,REVENUE,REDACTED
Gosport Borough Council,,PLANNING SERVICES,H4-13,,,,MISCELLANEOUS EXPENSES,,,,,26/11/15,73182,"5,100.00",REVENUE,Bridgemary Community College
Gosport Borough Council,,CENTRAL SERVICES TO THE PUBLIC,H4-5,,,,"PRINTING, STAT & OFFICE EXP",,,,,12/11/15,72696,"3,559.15",REVENUE,Mail & Print Services Uk Ltd (Mps)
Gosport Borough Council,,CENTRAL SERVICES TO THE PUBLIC,H4-5,,,,COMMUNICATIONS AND COMPUTING,,,,,12/11/15,72696,"2,786.80",REVENUE,Mail & Print Services Uk Ltd (Mps)
Gosport Borough Council,,PLANNING SERVICES,H4-13,,,,MISCELLANEOUS EXPENSES,,,,,12/11/15,72693,"1,213.80",REVENUE,Moving On Project
Gosport Borough Council,,PLANNING SERVICES,H4-13,,,,MISCELLANEOUS EXPENSES,,,,,19/11/15,72963,"2,450.00",REVENUE,Motiv8 South Limited
Gosport Borough Council,,PLANNING SERVICES,H4-13,,,,MISCELLANEOUS EXPENSES,,,,,12/11/15,72682,853.30,REVENUE,REDACTED
Gosport Borough Council,,PLANNING SERVICES,H4-13,,,,MISCELLANEOUS EXPENSES,,,,,19/11/15,72934,"2,030.00",REVENUE,Gosport F.C
Gosport Borough Council,,PLANNING SERVICES,H4-13,,,,MISCELLANEOUS EXPENSES,,,,,12/11/15,72677,"2,000.00",REVENUE,Hampshire Cultural Trust Limited
Gosport Borough Council,,PLANNING SERVICES,H4-13,,,,MISCELLANEOUS EXPENSES,,,,,19/11/15,72909,"1,375.00",REVENUE,Sitra (Services) Limited
Gosport Borough Council,,PLANNING SERVICES,H4-13,,,,MISCELLANEOUS EXPENSES,,,,,26/11/15,73139,21.30,REVENUE,REDACTED
Gosport Borough Council,,SERVICE UNITS ADMIN COSTS,H4-6,,,,DIRECT EMPLOYEE EXPENSES,,,,,05/11/15,72544,447.36,REVENUE,Apprenticeship Solutions Limited
Gosport Borough Council,,SERVICE UNITS ADMIN COSTS,H4-6,,,,DIRECT EMPLOYEE EXPENSES,,,,,05/11/15,72466,499.80,REVENUE,Apprenticeship Solutions Limited
Gosport Borough Council,,SERVICE UNITS ADMIN COSTS,H4-6,,,,DIRECT EMPLOYEE EXPENSES,,,,,12/11/15,72725,638.40,REVENUE,Apprenticeship Solutions Limited
Gosport Borough Council,,SERVICE UNITS ADMIN COSTS,H4-6,,,,DIRECT EMPLOYEE EXPENSES,,,,,26/11/15,73150,638.40,REVENUE,Apprenticeship Solutions Limited
Gosport Borough Council,,SERVICE UNITS ADMIN COSTS,H4-6,,,,DIRECT EMPLOYEE EXPENSES,,,,,26/11/15,73166,638.40,REVENUE,Apprenticeship Solutions Limited
Gosport Borough Council,,SERVICE UNITS ADMIN COSTS,H4-6,,,,PUBLIC TRANSPORT,,,,,19/11/15,4789,48.40,REVENUE,Rsp Travel Warrants
Gosport Borough Council,,SERVICE UNITS ADMIN COSTS,H4-6,,,,DIRECT EMPLOYEE EXPENSES,,,,,26/11/15,73153,496.58,REVENUE,Hays Recruitment Plc
Gosport Borough Council,,SERVICE UNITS ADMIN COSTS,H4-6,,,,DIRECT EMPLOYEE EXPENSES,,,,,12/11/15,72715,606.94,REVENUE,Hays Recruitment Plc
Gosport Borough Council,,SERVICE UNITS ADMIN COSTS,H4-6,,,,DIRECT EMPLOYEE EXPENSES,,,,,12/11/15,72716,805.57,REVENUE,Hays Recruitment Plc
Gosport Borough Council,,SERVICE UNITS ADMIN COSTS,H4-6,,,,PUBLIC TRANSPORT,,,,,19/11/15,4789,10.80,REVENUE,Rsp Travel Warrants
Gosport Borough Council,,SERVICE UNITS ADMIN COSTS,H4-6,,,,"EQUIP, FURNITURE AND MATERIALS",,,,,05/11/15,71478,"2,662.00",REVENUE,Ace Office Environment Limited
Gosport Borough Council,,SERVICE UNITS ADMIN COSTS,H4-6,,,,MISCELLANEOUS EXPENSES,,,,,12/11/15,72504,506.79,REVENUE,Winchester City Council
Gosport Borough Council,,SERVICE UNITS ADMIN COSTS,H4-6,,,,CATERING,,,,,26/11/15,73139,7.40,REVENUE,REDACTED
Gosport Borough Council,,SERVICE UNITS ADMIN COSTS,H4-6,,,,MISCELLANEOUS EXPENSES,,,,,12/11/15,72713,"1,543.83",REVENUE,Alexander Faulkner Partnership Ltd Client A/C
Gosport Borough Council,,SERVICE UNITS ADMIN COSTS,H4-6,,,,DIRECT EMPLOYEE EXPENSES,,,,,19/11/15,72836,695.00,REVENUE,Ocean Media Group Ltd - Inside Housing
Gosport Borough Council,,SERVICE UNITS ADMIN COSTS,H4-6,,,,DIRECT EMPLOYEE EXPENSES,,,,,19/11/15,72889,982.50,REVENUE,Venn Group Limited
Gosport Borough Council,,SERVICE UNITS ADMIN COSTS,H4-6,,,,PUBLIC TRANSPORT,,,,,19/11/15,4789,101.50,REVENUE,Rsp Travel Warrants
Gosport Borough Council,,SERVICE UNITS ADMIN COSTS,H4-6,,,,DIRECT EMPLOYEE EXPENSES,,,,,05/11/15,72525,719.51,REVENUE,Michael Ricketts Associates
Gosport Borough Council,,SERVICE UNITS ADMIN COSTS,H4-6,,,,DIRECT EMPLOYEE EXPENSES,,,,,05/11/15,72528,"1,405.88",REVENUE,Matchtech Group Plc
Gosport Borough Council,,SERVICE UNITS ADMIN COSTS,H4-6,,,,DIRECT EMPLOYEE EXPENSES,,,,,05/11/15,72529,"1,405.88",REVENUE,Matchtech Group Plc
Gosport Borough Council,,SERVICE UNITS ADMIN COSTS,H4-6,,,,DIRECT EMPLOYEE EXPENSES,,,,,05/11/15,72530,"1,405.88",REVENUE,Matchtech Group Plc
Gosport Borough Council,,SERVICE UNITS ADMIN COSTS,H4-6,,,,DIRECT EMPLOYEE EXPENSES,,,,,05/11/15,72531,"1,405.88",REVENUE,Matchtech Group Plc
Gosport Borough Council,,SERVICE UNITS ADMIN COSTS,H4-6,,,,DIRECT EMPLOYEE EXPENSES,,,,,05/11/15,72527,"1,405.88",REVENUE,Matchtech Group Plc
Gosport Borough Council,,SERVICE UNITS ADMIN COSTS,H4-6,,,,DIRECT EMPLOYEE EXPENSES,,,,,12/11/15,72722,"1,405.88",REVENUE,Matchtech Group Plc
Gosport Borough Council,,SERVICE UNITS ADMIN COSTS,H4-6,,,,DIRECT EMPLOYEE EXPENSES,,,,,26/11/15,73177,"1,405.88",REVENUE,Matchtech Group Plc
Gosport Borough Council,,SERVICE UNITS ADMIN COSTS,H4-6,,,,DIRECT EMPLOYEE EXPENSES,,,,,26/11/15,73176,680.40,REVENUE,Hays Recruitment Plc
Gosport Borough Council,,SERVICE UNITS ADMIN COSTS,H4-6,,,,DIRECT EMPLOYEE EXPENSES,,,,,26/11/15,73173,689.85,REVENUE,Hays Recruitment Plc
Gosport Borough Council,,SERVICE UNITS ADMIN COSTS,H4-6,,,,DIRECT EMPLOYEE EXPENSES,,,,,05/11/15,72524,694.80,REVENUE,Hays Recruitment Plc
Gosport Borough Council,,SERVICE UNITS ADMIN COSTS,H4-6,,,,DIRECT EMPLOYEE EXPENSES,,,,,19/11/15,72922,695.70,REVENUE,Hays Recruitment Plc
Gosport Borough Council,,SERVICE UNITS ADMIN COSTS,H4-6,,,,PUBLIC TRANSPORT,,,,,19/11/15,4789,76.80,REVENUE,Rsp Travel Warrants
Gosport Borough Council,,SERVICE UNITS ADMIN COSTS,H4-6,,,,SERVICES,,,,,26/11/15,73054,500.00,REVENUE,Hellier Langston
Gosport Borough Council,,SERVICE UNITS ADMIN COSTS,H4-6,,,,PUBLIC TRANSPORT,,,,,19/11/15,4789,69.90,REVENUE,Rsp Travel Warrants
Gosport Borough Council,,SERVICE UNITS ADMIN COSTS,H4-6,,,,MISCELLANEOUS EXPENSES,,,,,05/11/15,72426,"5,365.00",REVENUE,Regen Management Consultancy Limited
Gosport Borough Council,,SERVICE UNITS ADMIN COSTS,H4-6,,,,DIRECT TRANSPORT COSTS,,,,,05/11/15,72481,35.00,REVENUE,Allstar Business Solutions Limited
Gosport Borough Council,,SERVICE UNITS ADMIN COSTS,H4-6,,,,PUBLIC TRANSPORT,,,,,19/11/15,4789,8.80,REVENUE,Rsp Travel Warrants
Gosport Borough Council,,SERVICE UNITS ADMIN COSTS,H4-6,,,,DIRECT TRANSPORT COSTS,,,,,05/11/15,72481,128.55,REVENUE,Allstar Business Solutions Limited
Gosport Borough Council,,SERVICE UNITS ADMIN COSTS,H4-6,,,,JOINT AUTHORITIES,,,,,12/11/15,72686,"159,207.40",REVENUE,Fareham Borough Council
Gosport Borough Council,,SERVICE UNITS ADMIN COSTS,H4-6,,,,DIRECT EMPLOYEE EXPENSES,,,,,05/11/15,72463,420.50,REVENUE,Manpower Uk Limited
Gosport Borough Council,,SERVICE UNITS ADMIN COSTS,H4-6,,,,"EQUIP, FURNITURE AND MATERIALS",,,,,12/11/15,72695,"14,945.23",REVENUE,Welldata Limited
Gosport Borough Council,,SERVICE UNITS ADMIN COSTS,H4-6,,,,"EQUIP, FURNITURE AND MATERIALS",,,,,19/11/15,72860,"3,228.00",REVENUE,Q-Matic Uk Ltd
Gosport Borough Council,,SERVICE UNITS ADMIN COSTS,H4-6,,,,GRANTS AND SUBSCRIPTIONS,,,,,12/11/15,72694,890.00,REVENUE,Socitm Limited
Gosport Borough Council,,SERVICE UNITS ADMIN COSTS,H4-6,,,,"EQUIP, FURNITURE AND MATERIALS",,,,,05/11/15,72461,378.95,REVENUE,Total Print Finishing Services Limited
Gosport Borough Council,,SERVICE UNITS ADMIN COSTS,H4-6,,,,"EQUIP, FURNITURE AND MATERIALS",,,,,12/11/15,72631,790.42,REVENUE,Print Room Supplies Limited (Prs)
Gosport Borough Council,,SERVICE UNITS ADMIN COSTS,H4-6,,,,"EQUIP, FURNITURE AND MATERIALS",,,,,05/11/15,72457,324.90,REVENUE,Presstek Europe Ltd
Gosport Borough Council,,SERVICE UNITS ADMIN COSTS,H4-6,,,,"EQUIP, FURNITURE AND MATERIALS",,,,,12/11/15,72643,285.14,REVENUE,Ace Office Environment Limited
Gosport Borough Council,,SERVICE UNITS ADMIN COSTS,H4-6,,,,"EQUIP, FURNITURE AND MATERIALS",,,,,26/11/15,73087,438.90,REVENUE,Antalis Limited
Gosport Borough Council,,SERVICE UNITS ADMIN COSTS,H4-6,,,,"EQUIP, FURNITURE AND MATERIALS",,,,,19/11/15,72894,118.08,REVENUE,Antalis Limited
Gosport Borough Council,,SERVICE UNITS ADMIN COSTS,H4-6,,,,"EQUIP, FURNITURE AND MATERIALS",,,,,12/11/15,72498,460.55,REVENUE,Antalis Limited
Gosport Borough Council,,SERVICE UNITS ADMIN COSTS,H4-6,,,,"PRINTING, STAT & OFFICE EXP",,,,,12/11/15,72720,"8,275.51",REVENUE,Ricoh Uk Ltd
Gosport Borough Council,,SERVICE UNITS ADMIN COSTS,H4-6,,,,SERVICES,,,,,27/11/15,4824,"3,698.35",REVENUE,Capita Business Services Limited
Gosport Borough Council,,SERVICE UNITS ADMIN COSTS,H4-6,,,,PUBLIC TRANSPORT,,,,,19/11/15,4789,8.80,REVENUE,Rsp Travel Warrants
Gosport Borough Council,,SERVICE UNITS ADMIN COSTS,H4-6,,,,DIRECT TRANSPORT COSTS,,,,,05/11/15,72481,20.62,REVENUE,Allstar Business Solutions Limited
Gosport Borough Council,,SERVICE UNITS ADMIN COSTS,H4-6,,,,CONTRACT HIRE & OPER LEASES,,,,,19/11/15,4792,206.63,REVENUE,Arval - Bnp Paribas Group
Gosport Borough Council,,SERVICE UNITS ADMIN COSTS,H4-6,,,,"EQUIP, FURNITURE AND MATERIALS",,,,,12/11/15,72666,129.68,REVENUE,Cjs Portsmouth Ltd
Gosport Borough Council,,SERVICE UNITS ADMIN COSTS,H4-6,,,,REPAIRS AND MAINT OF BUILDINGS,,,,,26/11/15,73089,422.09,REVENUE,"Lucas, Windebank & Mcnally  (Builders)"
Gosport Borough Council,,SERVICE UNITS ADMIN COSTS,H4-6,,,,REPAIRS AND MAINT OF BUILDINGS,,,,,12/11/15,72630,652.39,REVENUE,"Lucas, Windebank & Mcnally  (Builders)"
Gosport Borough Council,,SERVICE UNITS ADMIN COSTS,H4-6,,,,ENERGY COSTS,,,,,19/11/15,4796,813.27,REVENUE,Haven (Drax) Power Limited
Gosport Borough Council,,SERVICE UNITS ADMIN COSTS,H4-6,,,,ENERGY COSTS,,,,,19/11/15,4797,"4,724.05",REVENUE,Haven (Drax) Power Limited
Gosport Borough Council,,SERVICE UNITS ADMIN COSTS,H4-6,,,,INDIRECT EMPLOYEE EXPENSES,,,,,05/11/15,72467,330.00,REVENUE,Fareham Borough Council
Gosport Borough Council,,SERVICE UNITS ADMIN COSTS,H4-6,,,,SERVICES,,,,,05/11/15,72533,664.00,REVENUE,Mr A.F Winchcombe
Gosport Borough Council,,SERVICE UNITS ADMIN COSTS,H4-6,,,,SERVICES,,,,,12/11/15,72723,664.00,REVENUE,Mr A.F Winchcombe
Gosport Borough Council,,SERVICE UNITS ADMIN COSTS,H4-6,,,,SERVICES,,,,,19/11/15,72918,664.00,REVENUE,Mr A.F Winchcombe
Gosport Borough Council,,SERVICE UNITS ADMIN COSTS,H4-6,,,,SERVICES,,,,,26/11/15,73113,858.00,REVENUE,Mr A.F Winchcombe
Gosport Borough Council,,SERVICE UNITS ADMIN COSTS,H4-6,,,,PUBLIC TRANSPORT,,,,,19/11/15,4789,146.70,REVENUE,Rsp Travel Warrants
Gosport Borough Council,,SERVICE UNITS ADMIN COSTS,H4-6,,,,SERVICES,,,,,12/11/15,72704,"1,010.00",REVENUE,Ecosa Ltd
Gosport Borough Council,,SERVICE UNITS ADMIN COSTS,H4-6,,,,SERVICES,,,,,27/11/15,4821,"1,420.00",REVENUE,Hmct Service
Gosport Borough Council,,SERVICE UNITS ADMIN COSTS,H4-6,,,,PUBLIC TRANSPORT,,,,,19/11/15,4789,66.90,REVENUE,Rsp Travel Warrants
Gosport Borough Council,,SERVICE UNITS ADMIN COSTS,H4-6,,,,DIRECT EMPLOYEE EXPENSES,,,,,26/11/15,73144,490.25,REVENUE,Eden Brown Synergy (Hcig)
Gosport Borough Council,,SERVICE UNITS ADMIN COSTS,H4-6,,,,DIRECT EMPLOYEE EXPENSES,,,,,26/11/15,73148,614.25,REVENUE,Eden Brown Synergy (Hcig)
Gosport Borough Council,,SERVICE UNITS ADMIN COSTS,H4-6,,,,DIRECT EMPLOYEE EXPENSES,,,,,26/11/15,73145,783.00,REVENUE,Eden Brown Synergy (Hcig)
Gosport Borough Council,,SERVICE UNITS ADMIN COSTS,H4-6,,,,DIRECT EMPLOYEE EXPENSES,,,,,26/11/15,73147,980.50,REVENUE,Eden Brown Synergy (Hcig)
Gosport Borough Council,,SERVICE UNITS ADMIN COSTS,H4-6,,,,DIRECT EMPLOYEE EXPENSES,,,,,26/11/15,73146,"1,167.75",REVENUE,Eden Brown Synergy (Hcig)
Gosport Borough Council,,SERVICE UNITS ADMIN COSTS,H4-6,,,,DIRECT EMPLOYEE EXPENSES,,,,,26/11/15,73143,"1,363.50",REVENUE,Eden Brown Synergy (Hcig)
Gosport Borough Council,,SERVICE UNITS ADMIN COSTS,H4-6,,,,DIRECT EMPLOYEE EXPENSES,,,,,19/11/15,72964,"1,120.00",REVENUE,Morgan Hunt Uk Limited
Gosport Borough Council,,SERVICE UNITS ADMIN COSTS,H4-6,,,,DIRECT EMPLOYEE EXPENSES,,,,,19/11/15,72965,"1,442.00",REVENUE,Morgan Hunt Uk Limited
Gosport Borough Council,,SERVICE UNITS ADMIN COSTS,H4-6,,,,PUBLIC TRANSPORT,,,,,19/11/15,4789,204.30,REVENUE,Rsp Travel Warrants
Gosport Borough Council,,SERVICE UNITS ADMIN COSTS,H4-6,,,,COMMUNICATIONS AND COMPUTING,,,,,19/11/15,72911,"1,582.16",REVENUE,Northgate Public Services (Uk) Limited
Gosport Borough Council,,CAPITAL,H4-9,,,,CAPITAL - PREMISES COSTS,,,,,12/11/15,72638,975.00,CAPITAL,Martin Ralph Limited
Gosport Borough Council,,CAPITAL,H4-9,,,,CAPITAL - PREMISES COSTS,,,,,12/11/15,72717,"1,419.00",CAPITAL,Ellachie Limited
Gosport Borough Council,,CAPITAL,H4-9,,,,CAPITAL - PREMISES COSTS,,,,,12/11/15,72735,"1,500.00",CAPITAL,Ellachie Limited
Gosport Borough Council,,CAPITAL,H4-9,,,,CAPITAL - PREMISES COSTS,,,,,26/11/15,73171,"18,843.88",CAPITAL,Novus Property Solutions Limited
Gosport Borough Council,,CAPITAL,H4-9,,,,CAPITAL - PREMISES COSTS,,,,,26/11/15,73170,"20,175.78",CAPITAL,Novus Property Solutions Limited
Gosport Borough Council,,CAPITAL,H4-9,,,,SERVICES,,,,,12/11/15,72700,"1,719.85",CAPITAL,Trowers & Hamlins Llp
Gosport Borough Council,,CAPITAL,H4-9,,,,SERVICES,,,,,26/11/15,73120,795.00,CAPITAL,Tully De'Ath (Consultants) Limited
Gosport Borough Council,,CAPITAL,H4-9,,,,SERVICES,,,,,05/11/15,72488,"1,867.50",CAPITAL,Airey Miller Partnership Llp
Gosport Borough Council,,CAPITAL,H4-9,,,,SERVICES,,,,,05/11/15,72487,"14,468.19",CAPITAL,Airey Miller Partnership Llp
Gosport Borough Council,,CAPITAL,H4-9,,,,CAPITAL - PREMISES COSTS,,,,,05/11/15,72485,"5,157.50",CAPITAL,Aecom (Uk) Limited
Gosport Borough Council,,CAPITAL,H4-9,,,,CAPITAL - PREMISES COSTS,,,,,05/11/15,72543,"11,525.01",CAPITAL,Havant Borough Council
Gosport Borough Council,,CAPITAL,H4-9,,,,CAPITAL - PREMISES COSTS,,,,,12/11/15,72623,"44,019.30",CAPITAL,Hobart Paving Company Limited
Gosport Borough Council,,CAPITAL,H4-9,,,,CAPITAL - PREMISES COSTS,,,,,19/11/15,72874,"2,926.76",CAPITAL,Carpet Fayre Ltd
Gosport Borough Council,,CAPITAL,H4-9,,,,CAPITAL - PREMISES COSTS,,,,,12/11/15,72727,"-3,533.00",CAPITAL,Tensor Plc
Gosport Borough Council,,CAPITAL,H4-9,,,,CAPITAL - PREMISES COSTS,,,,,12/11/15,71520,"27,196.49",CAPITAL,Tensor Plc
Gosport Borough Council,,HRA,H4-7,,,,"PRINTING, STAT & OFFICE EXP",,,,,19/11/15,4795,465.71,REVENUE,Allpay Ltd
Gosport Borough Council,,HRA,H4-7,,,,GROUNDS MAINTENANCE COSTS,,,,,12/11/15,72454,420.00,REVENUE,Cliff Phillips Landscapes
Gosport Borough Council,,HRA,H4-7,,,,GROUNDS MAINTENANCE COSTS,,,,,19/11/15,72895,"1,790.00",REVENUE,South Coast Tree Surgeons
Gosport Borough Council,,HRA,H4-7,,,,GROUNDS MAINTENANCE COSTS,,,,,19/11/15,72870,"1,560.00",REVENUE,Skyfell Tree Specialists Limited
Gosport Borough Council,,HRA,H4-7,,,,DIRECT TRANSPORT COSTS,,,,,05/11/15,72481,45.92,REVENUE,Allstar Business Solutions Limited
Gosport Borough Council,,HRA,H4-7,,,,ENERGY COSTS,,,,,27/11/15,4818,793.63,REVENUE,Southern Electric
Gosport Borough Council,,HRA,H4-7,,,,ENERGY COSTS,,,,,27/11/15,4819,904.05,REVENUE,Southern Electric
Gosport Borough Council,,HRA,H4-7,,,,ENERGY COSTS,,,,,27/11/15,4825,"1,246.55",REVENUE,Southern Electric
Gosport Borough Council,,HRA,H4-7,,,,COMMUNICATIONS AND COMPUTING,,,,,05/11/15,72507,503.94,REVENUE,Talk Talk Business
Gosport Borough Council,,HRA,H4-7,,,,CLEANING AND DOMESTIC SUPPLIES,,,,,12/11/15,72714,556.96,REVENUE,1st Choice H. L. C. & M. Limited
Gosport Borough Council,,HRA,H4-7,,,,"EQUIP, FURNITURE AND MATERIALS",,,,,12/11/15,72674,89.69,REVENUE,Aadvark Supplies Limited
Gosport Borough Council,,HRA,H4-7,,,,DIRECT EMPLOYEE EXPENSES,,,,,26/11/15,73138,633.25,REVENUE,Manpower Uk Limited
Gosport Borough Council,,HRA,H4-7,,,,DIRECT EMPLOYEE EXPENSES,,,,,26/11/15,73125,648.16,REVENUE,Manpower Uk Limited
Gosport Borough Council,,HRA,H4-7,,,,DIRECT EMPLOYEE EXPENSES,,,,,05/11/15,72514,800.88,REVENUE,Manpower Uk Limited
Gosport Borough Council,,HRA,H4-7,,,,DIRECT EMPLOYEE EXPENSES,,,,,26/11/15,73131,938.70,REVENUE,Manpower Uk Limited
Gosport Borough Council,,HRA,H4-7,,,,DIRECT EMPLOYEE EXPENSES,,,,,05/11/15,72520,946.15,REVENUE,Manpower Uk Limited
Gosport Borough Council,,HRA,H4-7,,,,DIRECT EMPLOYEE EXPENSES,,,,,26/11/15,73137,946.15,REVENUE,Manpower Uk Limited
Gosport Borough Council,,HRA,H4-7,,,,DIRECT EMPLOYEE EXPENSES,,,,,26/11/15,73136,957.33,REVENUE,Manpower Uk Limited
Gosport Borough Council,,HRA,H4-7,,,,DIRECT EMPLOYEE EXPENSES,,,,,05/11/15,72518,961.05,REVENUE,Manpower Uk Limited
Gosport Borough Council,,HRA,H4-7,,,,DIRECT EMPLOYEE EXPENSES,,,,,26/11/15,73126,"1,031.83",REVENUE,Manpower Uk Limited
Gosport Borough Council,,HRA,H4-7,,,,DIRECT EMPLOYEE EXPENSES,,,,,26/11/15,73133,"1,043.00",REVENUE,Manpower Uk Limited
Gosport Borough Council,,HRA,H4-7,,,,DIRECT EMPLOYEE EXPENSES,,,,,26/11/15,73132,"1,049.10",REVENUE,Manpower Uk Limited
Gosport Borough Council,,HRA,H4-7,,,,DIRECT EMPLOYEE EXPENSES,,,,,26/11/15,73135,"1,049.10",REVENUE,Manpower Uk Limited
Gosport Borough Council,,HRA,H4-7,,,,DIRECT EMPLOYEE EXPENSES,,,,,26/11/15,73130,"1,052.83",REVENUE,Manpower Uk Limited
Gosport Borough Council,,HRA,H4-7,,,,DIRECT EMPLOYEE EXPENSES,,,,,26/11/15,73124,"1,053.88",REVENUE,Manpower Uk Limited
Gosport Borough Council,,HRA,H4-7,,,,DIRECT EMPLOYEE EXPENSES,,,,,05/11/15,72521,"1,056.55",REVENUE,Manpower Uk Limited
Gosport Borough Council,,HRA,H4-7,,,,DIRECT EMPLOYEE EXPENSES,,,,,26/11/15,73129,"1,056.55",REVENUE,Manpower Uk Limited
Gosport Borough Council,,HRA,H4-7,,,,DIRECT EMPLOYEE EXPENSES,,,,,26/11/15,73127,"1,137.24",REVENUE,Manpower Uk Limited
Gosport Borough Council,,HRA,H4-7,,,,DIRECT EMPLOYEE EXPENSES,,,,,05/11/15,72519,"1,154.76",REVENUE,Manpower Uk Limited
Gosport Borough Council,,HRA,H4-7,,,,DIRECT EMPLOYEE EXPENSES,,,,,26/11/15,73128,"1,168.30",REVENUE,Manpower Uk Limited
Gosport Borough Council,,HRA,H4-7,,,,DIRECT EMPLOYEE EXPENSES,,,,,05/11/15,72517,"1,182.30",REVENUE,Manpower Uk Limited
Gosport Borough Council,,HRA,H4-7,,,,DIRECT EMPLOYEE EXPENSES,,,,,26/11/15,73134,"1,414.03",REVENUE,Manpower Uk Limited
Gosport Borough Council,,HRA,H4-7,,,,CATERING,,,,,26/11/15,73139,1.83,REVENUE,REDACTED
Gosport Borough Council,,HRA,H4-7,,,,GROUNDS MAINTENANCE COSTS,,,,,05/11/15,72445,"2,000.00",REVENUE,Cliff Phillips Landscapes
Gosport Borough Council,,HRA,H4-7,,,,SERVICES,,,,,19/11/15,72932,"1,400.00",REVENUE,Certsure Llp
Gosport Borough Council,,HRA,H4-7,,,,REPAIRS AND MAINT OF BUILDINGS,,,,,26/11/15,73172,"21,640.14",REVENUE,Novus Property Solutions Limited
Gosport Borough Council,,HRA,H4-7,,,,REPAIRS AND MAINT OF BUILDINGS,,,,,19/11/15,72736,"6,841.59",REVENUE,Kier Building Maintenance
Gosport Borough Council,,HRA,H4-7,,,,DIRECT EMPLOYEE EXPENSES,,,,,19/11/15,72719,"2,598.16",REVENUE,Kier Building Maintenance
Gosport Borough Council,,HRA,H4-7,,,,REPAIRS AND MAINT OF BUILDINGS,,,,,12/11/15,72701,"475,000.00",REVENUE,Kier Building Maintenance
Gosport Borough Council,,ENV AND REGULATORY SERVICES,H4-12,,,,PRIVATE CONTRACTORS,,,,,12/11/15,72541,"188,438.10",REVENUE,Urbaser Limited
Gosport Borough Council,,CULTURAL AND RELATED SERVICES,H4-11,,,,PRIVATE CONTRACTORS,,,,,05/11/15,72537,"4,233.14",REVENUE,Sodexo - Horticultural Services
Gosport Borough Council,,CULTURAL AND RELATED SERVICES,H4-11,,,,PRIVATE CONTRACTORS,,,,,05/11/15,72538,"64,411.44",REVENUE,Sodexo - Horticultural Services
